bitfinex/quotes_BTCUSD_20230101
["timestamp","ask_amount","ask_price","bid_price","bid_amount"]
[1672589382271,0.82037867,16580.0,16579.0,4.34205157]
[1672589382633,0.82037867,16580.0,16579.0,4.64362157]
[1672589388110,0.82037867,16580.0,16579.0,3.94362157]
[1672589388855,0.82037867,16580.0,16579.0,3.83136057]
[1672589389070,0.82037867,16580.0,16579.0,4.53136057]
[1672589389286,0.82037867,16580.0,16579.0,4.64362157]
[1672589390994,0.82037867,16580.0,16579.0,4.9135975]
[1672589391239,0.82037867,16580.0,16579.0,4.64362157]
[1672589391966,0.82037867,16580.0,16579.0,4.9135975]
[1672589392180,0.82037867,16580.0,16579.0,4.64362157]
[1672589395228,0.82037867,16580.0,16579.0,3.94362157]
[1672589396191,0.82037867,16580.0,16579.0,4.64362157]
[1672589398356,1.00141031,16580.0,16579.0,4.46421401]
[1672589398584,1.00141031,16580.0,16579.0,4.46386284]
[1672589399391,1.27282111,16580.0,16579.0,3.99860669]
[1672589399639,1.27282111,16580.0,16579.0,3.58634569]
[1672589399887,1.91719865,16580.0,16579.0,2.70865058]
[1672589400149,1.91719865,16580.0,16579.0,2.7085888]
[1672589400150,2.09815953,16580.0,16579.0,2.7085888]
[1672589400456,2.09852829,16580.0,16579.0,2.7085888]
[1672589400708,1.73634617,16580.0,16579.0,2.7085888]
[1672589402131,1.73634617,16580.0,16579.0,3.0085888]
[1672589402620,2.0983647,16580.0,16579.0,3.0085888]
[1672589404603,2.3698093,16580.0,16579.0,3.0085888]
[1672589405088,1.91743762,16580.0,16579.0,3.0085888]
[1672589406104,2.3698093,16580.0,16579.0,3.00924904]
[1672589406617,1.91743762,16580.0,16579.0,3.00924904]
[1672589407876,1.91743762,16580.0,16579.0,3.0085888]
[1672589408131,1.91743762,16580.0,16579.0,3.00963071]
[1672589409118,1.91743762,16580.0,16579.0,3.0085888]
[1672589409378,1.91743762,16580.0,16579.0,2.3085888]
[1672589410589,1.91743762,16580.0,16579.0,3.0085888]
[1672589411359,1.91743762,16580.0,16579.0,3.00926812]
[1672589411600,1.91743762,16580.0,16579.0,3.0085888]
[1672589412370,1.91743762,16580.0,16579.0,2.7085888]
[1672589412634,3.45612353,16580.0,16579.0,1.5022448]
[1672589412889,2.7193797,16580.0,16579.0,1.5022448]
[1672589413143,2.91385508,16580.0,16579.0,1.5022448]
[1672589413396,2.44839488,16580.0,16579.0,0.8990728]
[1672589413640,2.44339488,16580.0,16579.0,0.80813458]
[1672589413899,1.91498949,16580.0,16579.0,0.80813458]
[1672589414152,2.36544969,16580.0,16579.0,0.10813458]
[1672589414399,2.92385508,16580.0,16579.0,0.10813458]
[1672589414709,1.91498949,16580.0,16579.0,0.10813458]
[1672589414945,2.38044969,16580.0,16579.0,0.10813458]
[1672589415734,2.46025926,16580.0,16579.0,0.10813458]
[1672589415984,2.90668752,16580.0,16579.0,0.10813458]
[1672589417003,2.44122732,16580.0,16579.0,0.10813458]
[1672589418733,1.89782193,16580.0,16579.0,0.10813458]
[1672589418974,2.36328213,16580.0,16579.0,0.10813458]
[1672589421172,2.81476233,16580.0,16579.0,0.10813458]
[1672589422222,2.36833407,16580.0,16579.0,0.10813458]
[1672589422491,2.26403478,16580.0,16579.0,0.71130658]
[1672589423478,2.72949498,16580.0,16579.0,0.71130658]
[1672589424452,2.72949498,16580.0,16579.0,0.71122707]
[1672589427397,2.26403478,16580.0,16579.0,0.71122707]
[1672589429901,2.24903478,16580.0,16579.0,0.71122707]
[1672589430395,2.26403478,16580.0,16579.0,0.71122707]
[1672589430901,2.98810981,16580.0,16579.0,0.71122707]
[1672589431409,2.97310981,16580.0,16579.0,0.71122707]
[1672589431652,2.98810981,16580.0,16579.0,0.71122707]
[1672589432399,2.52264961,16580.0,16579.0,0.71122707]
[1672589437148,2.07116941,16580.0,16579.0,0.71122707]
[1672589438898,1.45015441,16580.0,16579.0,0.71122707]
[1672589439391,2.07116941,16580.0,16579.0,0.71122707]
[1672589439671,2.6145748,16580.0,16579.0,0.71122707]
[1672589439945,2.07116941,16580.0,16579.0,0.71122707]
[1672589440440,3.080035,16580.0,16579.0,0.71122707]
[1672589440718,2.6145748,16580.0,16579.0,0.71122707]
[1672589445528,2.6145748,16580.0,16579.0,0.7111298]
[1672589446799,3.080035,16580.0,16579.0,0.7111298]
[1672589450649,2.07116941,16580.0,16579.0,0.7111298]
[1672589451639,0.83037867,16580.0,16579.0,1.13416422]
[1672589451897,1.37345811,16580.0,16579.0,0.71119597]
[1672589452148,0.83037867,16580.0,16579.0,0.7111298]
[1672589452576,0.81537867,16580.0,16579.0,0.7111298]
[1672589453004,0.81537867,16580.0,16579.0,1.31436797]
[1672589453226,0.81537867,16580.0,16579.0,1.3143018]
[1672589453755,0.83037867,16580.0,16579.0,1.3143018]
[1672589454205,0.83037867,16580.0,16579.0,1.31436797]
[1672589456034,1.28290228,16580.0,16579.0,1.31436797]
[1672589456546,1.28290188,16580.0,16579.0,1.31436797]
[1672589458704,1.28290188,16580.0,16579.0,1.3143018]
[1672589460203,1.26790188,16580.0,16579.0,1.3143018]
[1672589460456,1.28290188,16580.0,16579.0,1.3143018]
[1672589462686,0.83037867,16580.0,16579.0,1.3143018]
[1672589462930,1.28283387,16580.0,16579.0,1.3143018]
[1672589463166,1.90384887,16580.0,16579.0,1.3143018]
[1672589465583,1.90384887,16580.0,16579.0,1.31423796]
[1672589466533,1.90384887,16580.0,16579.0,1.31430413]
[1672589467256,1.90384887,16580.0,16579.0,1.31423796]
[1672589467707,1.88884887,16580.0,16579.0,1.31423796]
[1672589467984,1.90384887,16580.0,16579.0,1.31423796]
[1672589470388,1.45139367,16580.0,16579.0,1.31430413]
[1672589470934,0.83037867,16580.0,16579.0,1.31423796]
[1672589472615,1.26776247,16580.0,16579.0,1.31430413]
[1672589472839,1.28276247,16580.0,16579.0,1.31430413]
[1672589473098,1.26776247,16580.0,16579.0,1.31423796]
[1672589473348,1.90377747,16580.0,16579.0,1.31423796]
[1672589474843,1.90377747,16580.0,16579.0,1.31430413]
[1672589475665,1.90377747,16580.0,16579.0,1.31423796]
[1672589476340,1.90377747,16580.0,16579.0,1.31430413]
[1672589476580,1.90377747,16580.0,16579.0,1.31423796]
[1672589479360,1.88877747,16580.0,16579.0,1.31423796]
[1672589479998,1.90377747,16580.0,16579.0,1.31423796]
[1672589482040,1.90377747,16580.0,16579.0,2.00148896]
[1672589482285,1.26776247,16580.0,16579.0,2.00148896]
[1672589482529,1.28276247,16580.0,16579.0,2.00155513]
[1672589482764,1.26776247,16580.0,16579.0,2.00148896]
[1672589483015,1.28276247,16580.0,16579.0,2.00148896]
[1672589484776,0.83037867,16580.0,16579.0,2.00148896]
[1672589486829,1.45139367,16580.0,16579.0,2.00148896]
[1672589487319,1.45139367,16580.0,16579.0,2.00155513]
[1672589487562,1.45139367,16580.0,16579.0,2.00148896]
[1672589488346,1.45139367,16580.0,16579.0,2.00155513]
[1672589488582,0.83037867,16580.0,16579.0,2.00145274]
[1672589489085,0.83037867,16580.0,16579.0,2.00138657]
[1672589489337,0.83037867,16580.0,16579.0,2.00145274]
[1672589490329,0.83037867,16580.0,16579.0,2.00138657]
[1672589490814,1.35845811,16580.0,16579.0,2.00138657]
[1672589491091,1.37345811,16580.0,16579.0,2.00138657]
[1672589491343,1.35845811,16580.0,16579.0,2.00138657]
[1672589491595,1.37345811,16580.0,16579.0,2.00138657]
[1672589491845,1.35845811,16580.0,16579.0,2.00138657]
[1672589492091,1.42245811,16580.0,16579.0,2.00838657]
[1672589492354,1.35845811,16580.0,16579.0,2.00138657]
[1672589492595,1.37345811,16580.0,16579.0,2.00138657]
[1672589493087,1.35845811,16580.0,16579.0,2.00138657]
[1672589494051,1.42245811,16580.0,16579.0,2.00838657]
[1672589494289,1.35845811,16580.0,16579.0,2.00138657]
[1672589494544,1.37345811,16580.0,16579.0,2.00138657]
[1672589494820,1.35845811,16580.0,16579.0,2.00145274]
[1672589495064,1.42245811,16580.0,16579.0,2.00838657]
[1672589495308,1.35845811,16580.0,16579.0,2.00138657]
[1672589495558,1.37345811,16580.0,16579.0,2.00138657]
[1672589496082,1.35845811,16580.0,16579.0,2.00138657]
[1672589496580,1.84506728,16580.0,16579.0,2.00138657]
[1672589497080,1.84506728,16580.0,16579.0,2.00145274]
[1672589497319,2.53008228,16580.0,16579.0,2.00845274]
[1672589497567,2.46608228,16580.0,16579.0,2.00145274]
[1672589497799,2.48108228,16580.0,16579.0,2.00138657]
[1672589498046,2.46608228,16580.0,16579.0,2.00145274]
[1672589498292,2.53008228,16580.0,16579.0,2.00838657]
[1672589498553,2.46608228,16580.0,16579.0,2.00138657]
[1672589498799,2.48108228,16580.0,16579.0,2.00138657]
[1672589499307,2.46608228,16580.0,16579.0,2.00138657]
[1672589500536,2.53008228,16580.0,16579.0,2.00838657]
[1672589500782,2.46608228,16580.0,16579.0,2.00138657]
[1672589501555,2.53008228,16580.0,16579.0,2.00838657]
[1672589501777,2.46608228,16580.0,16579.0,2.00138657]
[1672589502026,2.48108228,16580.0,16579.0,2.00138657]
[1672589502279,2.46608228,16580.0,16579.0,2.00138657]
[1672589502554,2.53008228,16580.0,16579.0,2.00838657]
[1672589504085,2.53008228,16580.0,16579.0,2.00845274]
[1672589504352,2.53008228,16580.0,16579.0,2.00838657]
[1672589505797,1.98700284,16580.0,16579.0,2.00838657]
[1672589506566,2.46614941,16580.0,16579.0,2.00838657]
[1672589506813,2.53014941,16580.0,16579.0,2.00838657]
[1672589508800,2.53014941,16580.0,16579.0,2.00845274]
[1672589509050,2.53014941,16580.0,16579.0,2.00838657]
[1672589520228,2.53014941,16580.0,16579.0,2.00845274]
[1672589520440,2.53014941,16580.0,16579.0,2.00838657]
[1672589521232,2.53014941,16580.0,16579.0,2.00845274]
[1672589521704,2.53014941,16580.0,16579.0,2.00838657]
[1672589522185,2.53014941,16580.0,16579.0,2.00845274]
[1672589522446,2.53014941,16580.0,16579.0,2.00838657]
[1672589527727,1.98689106,16580.0,16579.0,2.00838657]
[1672589528227,2.53019357,16580.0,16579.0,2.00838657]
[1672589529850,2.53019357,16580.0,16579.0,2.00832283]
[1672589531120,2.53019357,16580.0,16579.0,2.008389]
[1672589533091,2.53019357,16580.0,16579.0,2.00832283]
[1672589535253,1.98689106,16580.0,16579.0,2.00832283]
[1672589535768,1.98689106,16580.0,16579.0,2.008389]
[1672589536021,3.06379693,16580.0,16579.0,0.80197883]
[1672589536260,1.98689106,16580.0,16579.0,0.80197883]
[1672589536578,3.06379693,16580.0,16579.0,0.80197883]
[1672589537008,2.53433673,16580.0,16579.0,0.79497883]
[1672589537255,2.59833673,16580.0,16579.0,0.80197883]
[1672589538259,1.97732173,16580.0,16579.0,0.80197883]
[1672589538750,1.36587606,16580.0,16579.0,0.80197883]
[1672589538998,3.06379693,16580.0,16579.0,0.80197883]
[1672589539241,2.59833673,16580.0,16579.0,0.80197883]
[1672589541534,1.98689106,16580.0,16579.0,0.80197883]
[1672589543747,2.45235126,16580.0,16579.0,0.80197883]
[1672589544288,1.98689106,16580.0,16579.0,0.80197883]
[1672589547946,2.45235126,16580.0,16579.0,0.80197883]
[1672589548197,1.98689106,16580.0,16579.0,0.80197883]
[1672589550353,2.45235126,16580.0,16579.0,0.80197883]
[1672589550848,1.98689106,16580.0,16579.0,0.80197883]
[1672589551870,3.06379693,16580.0,16579.0,0.80197883]
[1672589552158,2.59833673,16580.0,16579.0,0.80197883]
[1672589553944,2.59833673,16580.0,16579.0,0.80190773]
[1672589554482,2.59833673,16580.0,16579.0,0.694251]
[1672589554721,2.59833673,16580.0,16579.0,0.82155937]
[1672589557969,1.98689106,16580.0,16579.0,0.82155937]
[1672589558223,3.06379693,16580.0,16579.0,0.82155937]
[1672589558474,2.59833673,16580.0,16579.0,0.82155937]
[1672589560728,2.90471642,16580.0,16579.0,0.82155937]
[1672589560979,2.59833673,16580.0,16579.0,0.82155937]
[1672589561240,3.06379693,16580.0,16579.0,0.82155937]
[1672589561471,2.54939945,16580.0,16579.0,0.82155937]
[1672589561727,3.42057411,16580.0,16579.0,0.82155937]
[1672589561980,4.10058814,16580.0,16579.0,0.82155937]
[1672589562218,3.5225715,16580.0,16579.0,0.82155937]
[1672589562745,3.4585715,16580.0,16579.0,0.81455937]
[1672589563000,3.5225715,16580.0,16579.0,0.82155937]
[1672589563265,3.94668596,16580.0,16579.0,0.81455937]
[1672589563531,3.66862855,16580.0,16579.0,0.82155937]
[1672589564779,3.18051409,16580.0,16579.0,0.82155937]
[1672589565300,3.72928045,16580.0,16579.0,0.82155937]
[1672589565803,3.18051409,16580.0,16579.0,0.82155937]
[1672589566046,4.11644741,16580.0,16579.0,0.82155937]
[1672589566298,3.5588789,16580.0,16579.0,0.82155937]
[1672589567246,4.0751409,16580.0,16579.0,0.82155937]
[1672589567483,3.5588789,16580.0,16579.0,0.82155937]
[1672589567966,4.00715299,16580.0,16579.0,0.82155937]
[1672589572439,3.5588789,16580.0,16579.0,0.82155937]
[1672589572704,4.1620149,16580.0,16579.0,0.82155937]
[1672589574008,4.1620149,16580.0,16579.0,0.82145111]
[1672589579662,4.4620149,16580.0,16579.0,0.82145111]
[1672589580656,4.3980149,16580.0,16579.0,0.81445111]
[1672589580896,4.3980149,16580.0,16579.0,0.81545111]
[1672589581137,4.2330149,16580.0,16579.0,0.81545111]
[1672589585121,4.5330149,16580.0,16579.0,0.81545111]
[1672589590114,4.80968976,16580.0,16579.0,0.81545111]
[1672589590587,4.2330149,16580.0,16579.0,0.81545111]
[1672589590825,4.75933758,16580.0,16579.0,0.81545111]
[1672589591830,4.2330149,16580.0,16579.0,0.81545111]
[1672589592040,4.67702767,16580.0,16579.0,0.81545111]
[1672589598313,4.67702767,16580.0,16579.0,0.81534641]
[1672589600778,5.56871928,16580.0,16579.0,0.81534641]
[1672589604058,4.67702767,16580.0,16579.0,0.81534641]
[1672589613150,5.56871928,16580.0,16579.0,0.81534641]
[1672589615287,5.12470651,16580.0,16579.0,0.81534641]
[1672589617799,5.75232802,16580.0,16579.0,0.81534641]
[1672589621970,5.75232802,16580.0,16579.0,0.81527435]
[1672589622209,5.61732802,16580.0,16579.0,0.81427435]
[1672589622451,5.74232802,16580.0,16579.0,0.81627435]
[1672589625997,4.4722716,16580.0,16579.0,0.81627435]
[1672589626771,3.8512566,16580.0,16579.0,0.81627435]
[1672589627065,3.3857964,16580.0,16579.0,0.81627435]
[1672589627310,3.84910506,16580.0,16579.0,0.81627435]
[1672589627550,4.47012006,16580.0,16579.0,0.81627435]
[1672589627773,4.97744547,16580.0,16579.0,0.81627435]
[1672589629731,4.47012006,16580.0,16579.0,0.81627435]
[1672589630235,3.86698406,16580.0,16579.0,0.81627435]
[1672589633402,3.4036754,16580.0,16579.0,0.81627435]
[1672589642118,3.4036754,16580.0,16579.0,0.81619197]
[1672589642618,1.5678884,16580.0,16579.0,0.81619197]
[1672589642832,2.79993968,16580.0,16579.0,0.81619197]
[1672589643355,2.1889034,16580.0,16579.0,0.81619197]
[1672589643602,1.5678884,16580.0,16579.0,0.81619197]
[1672589644819,2.17878589,16580.0,16579.0,0.81619197]
[1672589645073,1.5678884,16580.0,16579.0,0.81619197]
[1672589645346,2.1889034,16580.0,16579.0,0.81619197]
[1672589646195,2.52841874,16580.0,16579.0,0.81619197]
[1672589646448,3.13930805,16580.0,16579.0,0.81619197]
[1672589646953,2.1889034,16580.0,16579.0,0.81619197]
[1672589647437,2.7920394,16580.0,16579.0,0.81619197]
[1672589649983,3.3951754,16580.0,16579.0,0.81619197]
[1672589653829,3.3951754,16580.0,16579.0,0.81419197]
[1672589654072,3.3951754,16580.0,16579.0,0.81619197]
[1672589654593,3.8841744,16580.0,16579.0,0.81619197]
[1672589658729,3.3951754,16580.0,16579.0,0.81619197]
[1672589661971,2.7920394,16580.0,16579.0,0.81619197]
[1672589666702,2.7920394,16580.0,16579.0,0.81610795]
[1672589672616,2.1889034,16580.0,16579.0,0.81610795]
[1672589673348,1.5678884,16580.0,16579.0,0.81610795]
[1672589673840,2.1889034,16580.0,16579.0,0.81610795]
[1672589676584,1.5678884,16580.0,16579.0,0.81610795]
[1672589678221,2.17899171,16580.0,16579.0,0.81610795]
[1672589678460,1.5678884,16580.0,16579.0,0.81610795]
[1672589678985,2.17899151,16580.0,16579.0,0.81610795]
[1672589679236,2.80000651,16580.0,16579.0,0.81610795]
[1672589687940,2.80000651,16580.0,16579.0,0.81602124]
[1672589700295,2.17899151,16580.0,16579.0,0.81602124]
[1672589706836,2.80000651,16580.0,16579.0,0.81602124]
[1672589707103,2.17899151,16580.0,16579.0,0.81602124]
[1672589711300,2.17899151,16580.0,16579.0,0.81593314]
[1672589713109,2.80000651,16580.0,16579.0,0.81593314]
[1672589715671,2.17899151,16580.0,16579.0,0.81593314]
[1672589718431,0.94026689,16580.0,16579.0,3.67744629]
[1672589718693,0.94026689,16580.0,16579.0,4.08970729]
[1672589718935,1.39266023,16580.0,16579.0,3.78970729]
[1672589720414,1.39266023,16580.0,16579.0,4.78970729]
[1672589720916,1.75455893,16580.0,16579.0,4.48970729]
[1672589721169,1.75455893,16580.0,16579.0,4.78970729]
[1672589721425,1.75455893,16580.0,16579.0,4.48970729]
[1672589721678,1.39266023,16580.0,16579.0,4.48970729]
[1672589721923,0.94026689,16580.0,16579.0,3.29999834]
[1672589722196,0.94026689,16580.0,16579.0,3.30101588]
[1672589724850,0.94026689,16580.0,16579.0,2.60101588]
[1672589725171,0.94026689,16580.0,16579.0,2.48875488]
[1672589729348,0.94020288,16580.0,16579.0,2.48875488]
[1672589729590,1.39231988,16580.0,16579.0,2.48875488]
[1672589734173,1.39231988,16580.0,16579.0,2.98827859]
[1672589734424,1.75397517,16580.0,16579.0,3.10053959]
[1672589734681,2.02521265,16580.0,16579.0,2.98827859]
[1672589734925,1.57309565,16580.0,16579.0,2.98827859]
[1672589735507,1.57309565,16580.0,16579.0,3.28827859]
[1672589736016,1.57309565,16580.0,16579.0,3.98827859]
[1672589736267,1.57309565,16580.0,16579.0,4.10053959]
[1672589736778,1.57309565,16580.0,16579.0,4.70371159]
[1672589737757,1.753885,16580.0,16579.0,4.70371159]
[1672589738005,1.57309565,16580.0,16579.0,4.70371159]
[1672589739772,1.7538802,16580.0,16579.0,4.70371159]
[1672589740981,1.39222491,16580.0,16579.0,4.70371159]
[1672589744373,1.39222491,16580.0,16579.0,4.70269405]
[1672589744635,1.57309565,16580.0,16579.0,4.40269405]
[1672589745632,1.75387953,16580.0,16579.0,4.70269405]
[1672589745872,1.39222424,16580.0,16579.0,5.00427405]
[1672589746601,1.26722424,16580.0,16579.0,5.00227405]
[1672589747543,1.31522424,16580.0,16579.0,5.00727405]
[1672589747788,1.26722424,16580.0,16579.0,5.00227405]
[1672589748291,1.26722424,16580.0,16579.0,4.70069405]
[1672589749565,1.27522424,16580.0,16579.0,4.73069405]
[1672589750321,1.27522424,16580.0,16579.0,4.70069405]
[1672589750638,1.27522424,16580.0,16579.0,4.73069405]
[1672589750907,1.27522424,16580.0,16579.0,4.70069405]
[1672589751149,1.28322424,16580.0,16579.0,4.73059412]
[1672589751388,1.26722424,16580.0,16579.0,4.70059412]
[1672589751634,1.26722424,16580.0,16579.0,4.73059412]
[1672589751635,1.27522424,16580.0,16579.0,4.73059412]
[1672589751886,1.26722424,16580.0,16579.0,4.70059412]
[1672589752134,0.99598676,16580.0,16579.0,4.70059412]
[1672589752397,1.00398676,16580.0,16579.0,4.73059412]
[1672589752653,1.27522424,16580.0,16579.0,4.73059412]
[1672589753604,1.62893561,16580.0,16579.0,4.70059412]
[1672589753851,1.63693561,16580.0,16579.0,4.61833312]
[1672589754109,1.62893611,16580.0,16579.0,4.58833312]
[1672589754354,1.63693611,16580.0,16579.0,4.61833312]
[1672589754601,1.62893611,16580.0,16579.0,4.58833312]
[1672589754840,1.45609565,16580.0,16579.0,4.61833312]
[1672589755082,1.44809565,16580.0,16579.0,4.70059412]
[1672589755333,1.45609565,16580.0,16579.0,4.73059412]
[1672589755574,1.45609565,16580.0,16579.0,4.61833312]
[1672589756160,1.44809565,16580.0,16579.0,4.58833312]
[1672589756404,1.44809565,16580.0,16579.0,4.73059412]
[1672589756687,1.44809565,16580.0,16579.0,4.70059412]
[1672589756898,1.90021265,16580.0,16579.0,4.73059412]
[1672589757139,1.90021265,16580.0,16579.0,4.70059412]
[1672589757386,1.44809565,16580.0,16579.0,4.73059412]
[1672589757642,1.44809565,16580.0,16579.0,4.70059412]
[1672589757882,1.44809565,16580.0,16579.0,4.73059412]
[1672589758128,1.90821265,16580.0,16579.0,4.73059412]
[1672589759370,1.45609565,16580.0,16579.0,4.73059412]
[1672589759614,1.45609565,16580.0,16579.0,4.03059412]
[1672589759865,1.45609565,16580.0,16579.0,3.91833312]
[1672589760621,1.45609565,16580.0,16579.0,4.61833312]
[1672589760875,1.90821265,16580.0,16579.0,4.61833312]
[1672589761406,1.45609565,16580.0,16579.0,4.61833312]
[1672589761648,1.90821265,16580.0,16579.0,4.61833312]
[1672589761891,1.45609565,16580.0,16579.0,4.61833312]
[1672589762609,1.90821265,16580.0,16579.0,4.61833312]
[1672589763110,1.63697517,16580.0,16579.0,4.61833312]
[1672589763358,1.90840676,16580.0,16579.0,4.73059412]
[1672589763603,1.90840676,16580.0,16579.0,4.61833312]
[1672589763864,1.63697517,16580.0,16579.0,4.61833312]
[1672589764109,1.63697517,16580.0,16579.0,4.73059412]
[1672589766531,1.63697517,16580.0,16579.0,4.03059412]
[1672589766811,1.63697517,16580.0,16579.0,3.91833312]
[1672589767303,1.63697517,16580.0,16579.0,4.61833312]
[1672589767565,1.63697517,16580.0,16579.0,4.73059412]
[1672589769539,1.27531988,16580.0,16579.0,4.73059412]
[1672589770057,1.63739423,16580.0,16579.0,4.73059412]
[1672589770302,1.63739423,16580.0,16579.0,4.61833312]
[1672589770797,1.27531988,16580.0,16579.0,4.61833312]
[1672589771532,1.63745487,16580.0,16579.0,4.73059412]
[1672589772019,1.63745487,16580.0,16579.0,4.61833312]
[1672589773219,1.63745487,16580.0,16579.0,4.6182348]
[1672589773460,1.63745487,16580.0,16579.0,3.9182348]
[1672589773943,1.63745487,16580.0,16579.0,4.0304958]
[1672589774183,1.63745487,16580.0,16579.0,4.7304958]
[1672589774674,1.45698655,16580.0,16579.0,4.7304958]
[1672589776421,1.44898655,16580.0,16579.0,4.7004958]
[1672589776662,1.63005167,16580.0,16579.0,4.7324958]
[1672589776902,1.28091668,16580.0,16579.0,4.7324958]
[1672589777180,1.26791668,16580.0,16579.0,4.7004958]
[1672589777433,1.26791668,16580.0,16579.0,4.7324958]
[1672589777434,1.27991668,16580.0,16579.0,4.7324958]
[1672589783054,1.008268,16580.0,16579.0,4.7324958]
[1672589784028,1.008268,16580.0,16579.0,5.0340658]
[1672589784275,1.008268,16580.0,16579.0,4.7324958]
[1672589789809,1.008268,16580.0,16579.0,4.6202348]
[1672589790333,1.008268,16580.0,16579.0,4.7324958]
[1672589792243,1.008268,16580.0,16579.0,4.0324958]
[1672589792493,1.008268,16580.0,16579.0,3.9202348]
[1672589793240,1.008268,16580.0,16579.0,4.6202348]
[1672589793460,1.008268,16580.0,16579.0,4.7324958]
[1672589799990,1.008268,16580.0,16579.0,4.0324958]
[1672589800228,0.82720288,16580.0,16579.0,4.7324958]
[1672589800479,1.008268,16580.0,16579.0,4.7324958]
[1672589801703,0.82720288,16580.0,16579.0,4.7324958]
[1672589803342,1.008268,16580.0,16579.0,4.7324958]
[1672589803585,1.46098655,16580.0,16579.0,3.36380182]
[1672589803912,1.46098655,16580.0,16579.0,3.25154082]
[1672589804367,1.27981816,16580.0,16579.0,3.71700102]
[1672589804614,1.27981816,16580.0,16579.0,3.82926202]
[1672589804855,1.27981816,16580.0,16579.0,4.01700102]
[1672589805672,1.27981816,16580.0,16579.0,4.62017302]
[1672589805920,1.27981816,16580.0,16579.0,4.73243402]
[1672589807451,1.46098655,16580.0,16579.0,4.73243402]
[1672589808243,1.64198533,16580.0,16579.0,4.73243402]
[1672589808502,1.27985034,16580.0,16579.0,4.73243402]
[1672589808739,1.64198533,16580.0,16579.0,4.73243402]
[1672589809229,1.64200793,16580.0,16579.0,4.73243402]
[1672589809473,1.46098655,16580.0,16579.0,4.73243402]
[1672589810218,1.46098655,16580.0,16579.0,5.03401402]
[1672589811240,1.46098655,16580.0,16579.0,4.33401402]
[1672589811463,1.46098655,16580.0,16579.0,4.22175302]
[1672589812143,1.46098655,16580.0,16579.0,4.62017302]
[1672589812388,1.46098655,16580.0,16579.0,4.73243402]
[1672589813291,1.46098655,16580.0,16579.0,5.03401402]
[1672589814897,1.46098655,16580.0,16579.0,4.73243402]
[1672589815144,1.46098655,16580.0,16579.0,5.03401402]
[1672589817378,1.64205251,16580.0,16579.0,5.03401402]
[1672589818642,1.27991752,16580.0,16579.0,5.03401402]
[1672589820289,1.64205251,16580.0,16579.0,5.03401402]
[1672589820796,1.27991752,16580.0,16579.0,5.03401402]
[1672589823841,1.27991752,16580.0,16579.0,4.33401402]
[1672589824084,1.64205251,16580.0,16579.0,4.03243402]
[1672589824326,1.46098655,16580.0,16579.0,4.62017302]
[1672589824536,1.46098655,16580.0,16579.0,4.73243402]
[1672589825790,1.64204837,16580.0,16579.0,4.73243402]
[1672589826269,1.46098655,16580.0,16579.0,4.73243402]
[1672589827756,1.64204846,16580.0,16579.0,5.03401402]
[1672589827995,1.27991347,16580.0,16579.0,5.03401402]
[1672589832155,0.82720288,16580.0,16579.0,5.40827848]
[1672589832388,0.81425199,16582.0,16579.0,5.40827848]
[1672589832389,0.45271059,16582.0,16580.0,0.62377522]
[1672589832650,0.45271059,16582.0,16581.0,3.48400918]
[1672589832901,0.45271059,16582.0,16581.0,3.59625018]
[1672589833659,0.45371059,16582.0,16581.0,4.29625018]
[1672589833912,0.18206191,16582.0,16581.0,4.95293563]
[1672589834402,0.18106191,16582.0,16581.0,4.95293563]
[1672589834647,0.18206191,16582.0,16581.0,4.96793563]
[1672589836857,0.001,16582.0,16581.0,4.96793563]
[1672589837372,0.18206191,16582.0,16581.0,4.96793563]
[1672589838357,0.18199531,16582.0,16581.0,4.96793563]
[1672589838628,0.0009334,16582.0,16581.0,4.96793563]
[1672589838885,0.0009334,16582.0,16581.0,4.66642563]
[1672589839126,0.18199531,16582.0,16581.0,4.66642563]
[1672589843119,0.18199531,16582.0,16581.0,4.96797563]
[1672589843865,0.18199531,16582.0,16581.0,4.96899305]
[1672589845122,0.18199531,16582.0,16581.0,4.26899305]
[1672589846153,0.18199531,16582.0,16581.0,4.96899305]
[1672589846398,0.0009334,16582.0,16581.0,4.96899305]
[1672589852964,0.0009334,16582.0,16581.0,4.96898305]
[1672589853923,0.0009334,16582.0,16581.0,4.26898305]
[1672589855150,0.0009334,16582.0,16581.0,4.96898305]
[1672589861119,0.0009334,16582.0,16581.0,4.26898305]
[1672589862097,0.0009334,16582.0,16581.0,4.96898305]
[1672589862641,0.0009334,16582.0,16581.0,4.96887452]
[1672589866184,0.0009334,16582.0,16581.0,4.49877134]
[1672589867201,0.0009334,16582.0,16581.0,4.96887452]
[1672589867751,0.0009334,16582.0,16581.0,4.49877134]
[1672589867950,0.0009334,16582.0,16581.0,3.79877134]
[1672589868476,0.18199531,16582.0,16581.0,3.79877134]
[1672589868729,0.18199531,16582.0,16581.0,4.26887452]
[1672589868978,0.18199531,16582.0,16581.0,4.96887452]
[1672589870475,0.45364399,16582.0,16581.0,4.66733452]
[1672589873226,0.45364399,16582.0,16581.0,4.96887452]
[1672589876431,0.45364399,16582.0,16581.0,4.66733452]
[1672589877429,0.45364399,16582.0,16581.0,3.96733452]
[1672589877740,0.45364399,16582.0,16581.0,4.66733452]
[1672589882387,0.18199531,16582.0,16581.0,4.66733452]
[1672589887602,0.18190622,16582.0,16581.0,4.66733452]
[1672589888670,0.18190622,16582.0,16581.0,3.96733452]
[1672589889660,0.18190622,16582.0,16581.0,4.66733452]
[1672589890446,0.18190622,16582.0,16581.0,4.84774558]
[1672589890780,0.18190622,16582.0,16581.0,4.66733452]
[1672589892090,0.4535549,16582.0,16581.0,4.66733452]
[1672589894562,0.18190622,16582.0,16581.0,4.66733452]
[1672589895500,0.18190622,16582.0,16581.0,3.96733452]
[1672589896001,0.18190622,16582.0,16581.0,4.66733452]
[1672589896503,0.4535549,16582.0,16581.0,4.66733452]
[1672589897027,0.63462798,16582.0,16581.0,4.66733452]
[1672589898411,0.45355725,16582.0,16581.0,4.66733452]
[1672589900423,0.63462798,16582.0,16581.0,4.6663171]
[1672589900661,0.63462798,16582.0,16581.0,3.89632245]
[1672589900905,0.63462798,16582.0,16581.0,4.08408145]
[1672589901162,0.63462798,16582.0,16581.0,3.78408145]
[1672589901424,0.8150963,16582.0,16581.0,3.78408145]
[1672589901893,0.8150963,16582.0,16581.0,3.89632145]
[1672589903174,0.8150963,16582.0,16581.0,4.36642463]
[1672589904151,0.8150963,16582.0,16581.0,4.36744205]
[1672589904637,1.08661641,16582.0,16581.0,4.66744205]
[1672589904886,0.63449941,16582.0,16581.0,4.66744205]
[1672589907581,0.45334876,16582.0,16581.0,4.66744205]
[1672589909231,0.45334876,16582.0,16581.0,4.96898205]
[1672589909462,0.45334876,16582.0,16581.0,4.49887887]
[1672589909715,0.45334876,16582.0,16581.0,4.49888887]
[1672589911413,0.45334876,16582.0,16581.0,4.4987994]
[1672589913570,0.45334876,16582.0,16581.0,3.7987994]
[1672589914922,0.45334876,16582.0,16581.0,4.4987994]
[1672589915173,0.45334876,16582.0,16581.0,4.96890258]
[1672589915904,0.18182865,16582.0,16581.0,4.96890258]
[1672589916143,0.45334876,16582.0,16581.0,4.96890258]
[1672589916883,0.45334876,16582.0,16581.0,4.66633516]
[1672589917125,0.63449941,16582.0,16581.0,4.66633516]